Workbook

Sheet Calculo alimentadores
I1: Diseñado por Ing. Gregor Rojas
I2: Caracas - Venezuela
A3: PROGRAMA CÁLCULO DE ALIMENTADORES POR CAPACIDAD DE LA CARGA
A4: BASADO EN EL CÓDIGO ELÉCTRICO NACIONAL
K5: VERSIÓN 1-2015
E8: DATOS PARA EL CALCULO
A9: Carga expresada en | E9: Carga nominal: | F9: 206 | G9: =IF(E65=1,"KW",IF(E65=2,"HP",IF(E65=3,"A","KVA"))) -> KVA | I9: Voltaje de operación en voltios
E10: Factor de potencia: | F10: 0.8 | G10: fp | J10: =INDEX(I69:I75,I68,1) -> 208
E11: Eficiencia: | F11: 95 | G11: %
A12: Sistema | E12: Factor de diseño: | F12: 100 | G12: % | I12: Temperatura ambiente en ºC
E15: VALORES OBTENIDOS
A16: Material del conductor | E16: =IF(E65=3,"Potencia:","Corriente:") -> Corriente: | F16: =IF(E65=3,INDEX(E68:F71,E65,F65),INDEX(E68:F71,E65,F65)*F12/100) -> 571.7988243 | G16: =IF(E65=3,"Vatios","Amperios") -> Amperios | I16: Calibre del conductor
E17: Calibre del conductor: | F17: =INDEX('Tabla 310.16 CEN'!A10:A39,H65) -> 250 | G17: =IF(F17<=18,"AWG",IF(F17="1/0","AWG",IF(F17="2/0","AWG",IF(F17="3/0","AWG",IF(F17="4/0","AWG",IF(F17>=250,"MCM","error")))))) -> MCM
E18: Capacidad nominal del conductor: | F18: =INDEX('Tabla 310.16 CEN'!A10:G39,H65,I65) -> 230 | G18: Amperios
A19: Temperatura del conductor | E19: Factor de correcion por temperatura: | F19: =INDEX('Tabla 310.16 CEN'!A43:G52,J65,I65) -> 1 | G19: Tomado de Tabla 310.16 CEN | I19: Conductores por fase
E20: Numero de onductores: | F20: 3 | G20: por cada fase
E22: Capacidad global corregida: | F22: =F19*F18*F20 -> 690 | G22: Amperios
A23: =IF(F16>F22,"INCREMENTAR NUMERO DE CONDUCTORES POR FASE O SELECCIONAR UN CALIBRE MAYOR",IF(AND(F16<=F22,F22<=F16*1.05),"CANTIDAD DE CONDUCTORES POR FASE O SU CALIBRE SON ADECUADOS",IF(F22>F16*1.05,"CALIBRE DEL CONDUCTOR O SU NUMERO POR FASE ESTAN EXCEDIDOS (REAJUSTAR)","ERROR"))) -> CALIBRE DEL CONDUCTOR O SU NUMERO POR FASE ESTAN EXCEDIDOS (REAJUSTAR)
E64: Carga expresada en | F64: Sistema tipo | G64: Material | H64: calibre cable | I64: Temperatura cable | J64: Temp. ambiente
E65: 4 | F65: 2 | G65: 2 | H65: 16 | I65: =IF(G65=1,1,4)+J68 -> 7 | J65: 2
E66: MONOFASICO | F66: TRIFASICO | G66: Cobre | H66: 1 por cada fase
E67: TRIFASICO | G67: Aluminio | H67: 2 por cada fase | I67: voltajes | J67: Temperatura cable
D68: KW | E68: =F9*1000/J10*F10 -> 792.3076923 | F68: =F9*1000/(SQRT(3)*J10*F10) -> 714.7485304 | H68: 3 por cada fase | I68: 2 | J68: 3
D69: HP | E69: =(F9*745.69)/(J10*F10*F11/100) -> 971.7367156 | F69: =(F9*745.69)/(SQRT(3)*J10*F10*F11/100) -> 561.0324543 | H69: 4 por cada fase | I69: 120 | J69: 60°C
D70: A | E70: =J10*F9*F10 -> 34278.4 | F70: =SQRT(3)*J10*F9*F10 -> 59371.9304 | H70: 5 por cada fase | I70: 208 | J70: 75°C
D71: KVA | E71: =F9*1000/J10 -> 990.3846154 | F71: =F9*1000/(SQRT(3)*J10) -> 571.7988243 | H71: 6 por cada fase | I71: 220 | J71: 90°C
I72: 240
E73: Corriente | F73: =IF(E65=3,F9*F12/100,F16*F12/100) -> 571.7988243 | I73: 277
I74: 460
I75: 480

Sheet Tabla 310.16 CEN
A4: Tabla 310.16 CEN
A5: Ampacidades admisibles de los conductores aislados para tensiones nominales de 0 a 2000 V y 60°c a 90°c con no mas de tres conductores portadores de corriente en una canalización, cable o directamente enterrados, basadas en una temperatura ambiente de 30°c
A6: Calibre de los conductores AWG /Kcmil | B6: Regimen de temperatura del conductor (vease tabla 310.13(A)
B7: 60°C | C7: 75°C | D7: 90°C | E7: 60°C | F7: 75°C | G7: 90°C
B8: TW*, UF* | C8: FEPW*, RH*, RHW*, THHW*, THW*, THWN*, XHHW*, USE*, ZW* | D8: TBS, SA, SIS, FEP*, FEPB*, MI, RHH*, RHW-2, THHN*, THHW*, THW-2*, THWN-2*, USE-2, XHH, XHHW*, XHHW-2, ZW-2 | E8: TW*, UF* | F8: RH*, RHW*, THHW*, THW*, THWN*, XHHW*, USE* | G8: TBS, SA, SIS, THHN*, THHW*, THW-2, THWN-2, RHH*, RHW-2, USE-2, XHH, XHHW, XHHW-2, ZW-2
C9: COBRE | D9: COBRE | E9: ALUMINIO | F9: ALUMINIO
A10: 18 | B10: 0 | C10: 0 | D10: 14 | E10: 0 | F10: 0 | G10: 0
A11: 16 | B11: 0 | C11: 0 | D11: 18 | E11: 0 | F11: 0 | G11: 0
A12: 14 | B12: 20 | C12: 20 | D12: 25 | E12: 0 | F12: 0 | G12: 0
A13: 12 | B13: 25 | C13: 25 | D13: 30 | E13: 0 | F13: 20 | G13: 25
A14: 10 | B14: 30 | C14: 35 | D14: 40 | E14: 25 | F14: 30 | G14: 35
A15: 8 | B15: 40 | C15: 50 | D15: 55 | E15: 30 | F15: 40 | G15: 45
A16: 6 | B16: 55 | C16: 65 | D16: 75 | E16: 40 | F16: 50 | G16: 60
A17: 4 | B17: 70 | C17: 85 | D17: 95 | E17: 55 | F17: 65 | G17: 75
A18: 3 | B18: 85 | C18: 100 | D18: 110 | E18: 65 | F18: 75 | G18: 85
A19: 2 | B19: 95 | C19: 115 | D19: 130 | E19: 75 | F19: 90 | G19: 100
A20: 1 | B20: 110 | C20: 130 | D20: 150 | E20: 85 | F20: 100 | G20: 115
A21: 1/0 | B21: 125 | C21: 150 | D21: 170 | E21: 100 | F21: 120 | G21: 135
A22: 2/0 | B22: 145 | C22: 175 | D22: 195 | E22: 115 | F22: 135 | G22: 150
A23: 3/0 | B23: 165 | C23: 200 | D23: 225 | E23: 130 | F23: 155 | G23: 175
A24: 4/0 | B24: 195 | C24: 230 | D24: 260 | E24: 150 | F24: 180 | G24: 205
A25: 250 | B25: 215 | C25: 255 | D25: 290 | E25: 170 | F25: 205 | G25: 230
A26: 300 | B26: 240 | C26: 285 | D26: 320 | E26: 190 | F26: 230 | G26: 255
A27: 350 | B27: 260 | C27: 310 | D27: 350 | E27: 210 | F27: 250 | G27: 280
A28: 400 | B28: 280 | C28: 335 | D28: 380 | E28: 225 | F28: 270 | G28: 305
A29: 500 | B29: 320 | C29: 380 | D29: 430 | E29: 260 | F29: 310 | G29: 350
A30: 600 | B30: 355 | C30: 420 | D30: 475 | E30: 285 | F30: 340 | G30: 385
A31: 700 | B31: 385 | C31: 460 | D31: 520 | E31: 310 | F31: 375 | G31: 420
A32: 750 | B32: 400 | C32: 475 | D32: 535 | E32: 320 | F32: 385 | G32: 435
A33: 800 | B33: 410 | C33: 490 | D33: 555 | E33: 330 | F33: 395 | G33: 450
A34: 900 | B34: 435 | C34: 520 | D34: 585 | E34: 355 | F34: 425 | G34: 480
A35: 1000 | B35: 455 | C35: 545 | D35: 615 | E35: 375 | F35: 445 | G35: 500
A36: 1250 | B36: 495 | C36: 590 | D36: 665 | E36: 405 | F36: 485 | G36: 545
A37: 1500 | B37: 520 | C37: 625 | D37: 705 | E37: 435 | F37: 520 | G37: 585
A38: 1750 | B38: 545 | C38: 650 | D38: 735 | E38: 455 | F38: 545 | G38: 615
A39: 2000 | B39: 560 | C39: 665 | D39: 750 | E39: 470 | F39: 560 | G39: 630
A41: FACTORES DE CORRECCION
A42: Temp. Ambiente (ºC) | B42: Para temperaturas ambientes distintas a 30ºC se multiplican las ampacidades anteriores por los factores apropiados siguientes:
A43: 21-25 | B43: 1.08 | C43: 1.05 | D43: 1.04 | E43: 1.08 | F43: 1.05 | G43: 1.04
A44: 26-30 | B44: 1 | C44: 1 | D44: 1 | E44: 1 | F44: 1 | G44: 1
A45: 31-35 | B45: 0.91 | C45: 0.94 | D45: 0.96 | E45: 0.91 | F45: 0.94 | G45: 0.96
A46: 36-40 | B46: 0.82 | C46: 0.88 | D46: 0.91 | E46: 0.82 | F46: 0.88 | G46: 0.91
A47: 41-45 | B47: 0.71 | C47: 0.82 | D47: 0.87 | E47: 0.71 | F47: 0.82 | G47: 0.87
A48: 46-50 | B48: 0.58 | C48: 0.75 | D48: 0.82 | E48: 0.58 | F48: 0.75 | G48: 0.82
A49: 51-55 | B49: 0.41 | C49: 0.67 | D49: 0.76 | E49: 0.41 | F49: 0.67 | G49: 0.76
A50: 56-60 | C50: 0.58 | D50: 0.71 | F50: 0.58 | G50: 0.71
A51: 61-70 | C51: 0.33 | D51: 0.58 | F51: 0.33 | G51: 0.58
A52: 71-80 | D52: 0.41 | G52: 0.41

Sheet Instrucciones
B1: INSTRUCTIVO DE USO DEL PROGRAMA
A2: 1 | B2: Asegúrese de que las MACROS estén habilitadas
A3: 2 | B3: Seleccione de la lista desplegable ubicada a la izquierda debajo de "Carga expresada en" como esta expresada la carga si en: amperios (A), kilovoltioamper (KVA), kilovatios (KW) o en Caballos de fuerza (HP)
A4: 3 | B4: Coloque el valor de la "Carga nominal" expresada en potencia o corriente según aplique en la primera casilla ubicada al centro con letras azules correspondiente de DATOS PARA EL CALCULO
A5: 4 | B5: Coloque el valor del "Factor de potencia" en la segunda casilla ubicada al centro con letras azules correspondiente de DATOS PARA EL CALCULO, este valor generalmente esta comprendido entre 0,7 y 1. Si no conoce este valor tome el promedio de 0,8.
A6: 5 | B6: Coloque el valor de la "Eficiencia" en la tercera casilla ubicada al centro con letras azules correspondiente de DATOS PARA EL CALCULO, si no conoce este valor asuma el 100%.
A7: 6 | B7: Coloque el valor de la "Factor de diseño" en la cuarta casilla ubicada al centro con letras azules correspondiente de DATOS PARA EL CALCULO, si no conoce este valor puede colocar 100%, no obstante por lo general se proyecta asumiendo un valor de 125%
A8: 7 | B8: Seleccione de la lista desplegable ubicada a la izquierda debajo de "Sistema" monofasico si es un sistema de 1 fase o trifasico si es un sistema de 3 fases.
A9: 8 | B9: Seleccione de la lista desplegable ubicada a la derecha debajo de "Voltaje de operación en voltios" el nivel de voltaje con que opera el sistema.
A10: 9 | B10: Realizados los pasos anteriores el programa calculara automáticamente la "Corriente" del sistema y lo expresara en amperios ubicandolo en la primera casilla debajo de "VALORES OBTENIDOS"
A11: 10 | B11: Seleccione de la lista desplegable ubicada a la derecha debajo de "Temperatura ambiente en ºC " en la cual se encuentra el sistema operando. Estos rangos de temperatura estan basados en la tabla 310.16 del CEN.
A12: 11 | B12: Seleccione de la lista desplegable ubicada a la izquierda debajo de "Material del conductor" si el conductor esta hecho de cobre o de aluminio.
A13: 12 | B13: Seleccione de la lista desplegable ubicada a la izquierda debajo de "Temperatura del conductor" la cual por normas esta impresa en la chaqueta del conductor en caso de que la desconosca, generalmente esta entre 60°C, 75°C o 90°C
A14: 13 | B14: Seleccione de la lista desplegable ubicada a la derecha debajo de "Calibre del conductor" tamaño de conductor que requiere su sistema basado en la tabla 310.16 del CEN, es recomendable comenzar desde calibres menores e ir ajustando su calibre hasta que el programa indique "CANTIDAD DE CONDUCTORES POR FASE O SU CALIBRE SON ADECUADOS"
A15: 14 | B15: Seleccione de la lista desplegable ubicada a la derecha debajo de "Conductores por fase" la cantidad de conductores que requiere su sistema, es recomendable comenzar desde 1 conductor e ir ajustando su numero hasta que el programa indique "CANTIDAD DE CONDUCTORES POR FASE O SU CALIBRE SON ADECUADOS"
A16: 15 | B16: Es recomendable de las dos listas desplegables ubicadas a la derecha debajo de "Calibre del conductor y Conductores por fase" alternar entre ellas hasta lograr que el programa indique "CANTIDAD DE CONDUCTORES POR FASE O SU CALIBRE SON ADECUADOS"
A17: 16 | B17: Realizados los pasos anteriores el programa calculara automáticamente el calibre del conductor y lo expresara tanto en AWG o MCM según aplique donde se indica "Calibre del conductor AWG/MCM"
A18: 17 | B18: Haga "click" en el botón "Ver tabla 310.16 del CEN" para que el programa lo traslade a la misma en caso de requerirlo para alguna conprobacion.
A19: 18 | B19: Haga "click" en el botón "Ir a Calculo Alimentadores" para que el programa lo retorne
B20: NOTA:
B21: Los datos de los conductores que maneja el programa, son tomados de la tabla 310.16 del CEN, verifique si los cables de su proyecto se ajustan a estos valores, en todo caso es una excelente referencia para el cálculo del calibre y numero de conductores que conforman un alimentador por cada fase.
